Cogmind - Beta 13 @@@ ROGUE MODE // 2024.07.03 @ 13:13:05 Player: Cinder Result: Destroyed by G-47 Trooper with Particle Gun Performance ------------- Evolutions (2) 1000 Regions Visited (5) 1000 Robots Destroyed (73) 365 Value Destroyed (1966) 1966 Prototype IDs (1) 20 Alien Tech Used (0) 0 Bonus (22) 22 TOTAL SCORE: 4373 Bonus ------- High Alert Combat Kills 22 Cogmind --------- Core Integrity 0/550 Matter 182/300 Energy 27/125 System Corruption 3% Temperature Hot (249) Movement Core (1600) Ox31 Location -8/Materials Parts ------- > --- POWER (1) -------- Light Ion Engine > --- PROPULSION (4) --- (None) > --- UTILITY (3) ------ Huge Storage Unit Targeting Computer Core Shielding > --- WEAPON (3) ------- Assault Cannon Shock Bomb Launcher > --- INVENTORY (25) --- Improved Heat Sink Improved Sensor Array Improved Sensor Array Improved Power Shielding Reflective Plating Shock Bomb Launcher Heavy Flail Peak State ------------ > --- POWER ------------ Light Nuclear Core > --- PROPULSION ------- Aluminum Leg Aluminum Leg Aluminum Leg Titanium Leg > --- UTILITY ---------- Huge Storage Unit High-capacity Matter Pod Hardened Light Armor Plating > --- WEAPON ----------- Shock Rifle Particle Gun Great Maul > --- INVENTORY -------- Light Nuclear Core Light Nuclear Core Light Treads Light Treads Light Treads Aluminum Leg Improved Heat Sink Improved Sensor Array Improved Sensor Array Targeting Computer Core Shielding Reflective Plating Hardlight Generator Heavy Particle Gun Assault Cannon Assault Cannon Shock Bomb Launcher Shock Bomb Launcher Shock Bomb Launcher Shock Bomb Launcher Rocket Launcher Rocket Launcher Rocket Launcher Rocket Launcher Rocket Launcher [Rating: 26] Favorites ----------- Power Ion Engine Engine Ion Engine Power Core Light Nuclear Core Propulsion Aluminum Leg Treads Light Treads Leg Aluminum Leg Wheel Wheel Utility High-capacity Matter Pod Device Hardlight Generator Storage High-capacity Matter Pod Processor Targeting Computer Protection Hardened Light Armor Plating Weapon Light Assault Rifle Energy Gun Particle Gun Ballistic Gun Light Assault Rifle Ballistic Cannon Assault Cannon Launcher Shock Bomb Launcher Impact Weapon Great Maul Build | -11 -10 -10 -9 -9 -8 ------- Run | Yrd Mat Min Mat Min Mat Slots Evolved 4 | . . . 2 . 2 Power . | . . . . . . Propulsion 2 | . . . 2 . . Utility 1 | . . . . . 1 Weapon 1 | . . . . . 1 Parts Attached 80 | 7 2 1 18 8 44 Power 13 | 1 . 1 2 2 7 Engine 8 | 1 . 1 2 2 2 Core 5 | . . . . . 5 Reactor . | . . . . . . Propulsion 29 | 2 . . 12 3 12 Treads 6 | 2 . . . 1 3 Leg 22 | . . . 12 2 8 Wheel 1 | . . . . . 1 Hover . | . . . . . . Flight . | . . . . . . Utility 8 | 1 2 . . . 5 Device 1 | . . . . . 1 Storage 3 | 1 2 . . . . Processor 1 | . . . . . 1 Hackware . | . . . . . . Protection 3 | . . . . . 3 Artifact . | . . . . . . Weapon 30 | 3 . . 4 3 20 Energy Gun 15 | 2 . . 2 2 9 Energy Cannon . | . . . . . . Ballistic Gun 4 | 1 . . 2 . 1 Ballistic Cannon 2 | . . . . . 2 Launcher 8 | . . . . . 8 Special Weapon . | . . . . . . Impact Weapon 1 | . . . . 1 . Slashing Weapon . | . . . . . . Piercing Weapon . | . . . . . . Special Melee Weapon . | . . . . . . Unidentified Prototypes 1 | . . . . . 1 Parts Lost 54 | . . 1 12 6 35 Power 10 | . . 1 2 1 6 Propulsion 22 | . . . 5 3 14 Utility 3 | . . . . . 3 Weapon 19 | . . . 5 2 12 Highest Loss Streak 9 | . . 1 7 6 9 To Critical Strikes 1 | . . . . . 1 Average Slot Usage (%) 91 | . 97 100 93 98 85 Engine 7 | . 14 14 8 10 2 Core 2 | . . . . . 5 Treads 8 | . 28 28 . . 5 Leg 23 | . . . 41 43 18 Device 1 | . . . . . 3 Storage 21 | . 26 28 22 22 17 Protection 1 | . . . . . 4 Energy Gun 11 | . 14 14 9 10 11 Ballistic Gun 7 | . 14 14 10 9 1 Ballistic Cannon 1 | . . . . . 3 Launcher 1 | . . . . . 4 Impact Weapon 2 | . . . . 1 4 Naked Turns . | . . . . . . Heaviest Build 110 | 13 92 92 95 93 110 Greatest Support 60 | 40 40 40 43 40 60 Greatest Overweight (x) 32 | . 2 2 2 3 32 Average Overweight (x) 2 | . . 2 2 2 3 Largest Inventory Capacity 25 | 8 25 25 25 25 25 Average Capacity 23 | 7 18 25 25 25 25 Most Carried 25 | 4 9 13 24 25 25 Average Carried 17 | 2 6 11 20 23 19 Final Capacity 25 | 8 25 25 25 25 25 Final Carried 24 | 4 9 13 24 20 7 Class Distribution -------------------- 49% | Mutant 33% | Scavenger-Mutant 13% | Tank Dominant Class ---------------- Mutant | -10/Materials Mutant | -10/Mines Mutant | -9/Materials Scavenger-Mutant | -9/Mines Scavenger-Mutant | -8/Materials Resources | -11 -10 -10 -9 -9 -8 ----------- Run | Yrd Mat Min Mat Min Mat Matter Collected 1320 | 228 245 24 224 69 530 Remotely . | . . . . . . Salvage Created 2126 | . 191 174 661 78 1022 Parts 119 | . 9 7 28 3 72 Haulers Intercepted . | . . . . . . Recyclers Shooed 2 | . . . 1 . 1 Parts Field Recycled . | . . . . . . Retrieved Matter . | . . . . . . Parts Self-Destructed . | . . . . . . Prevented . | . . . . . . Kills | -11 -10 -10 -9 -9 -8 ------- Run | Yrd Mat Min Mat Min Mat Combat Hostiles Destroyed 53 | . 5 2 11 4 31 Melee 1 | . . . . 1 . Guns 32 | . 5 2 11 3 11 Cannons 7 | . . . . . 7 AOE 11 | . . . . . 11 Classes Destroyed 12 | . 1 1 2 2 6 Worker 7 | . . . . 1 6 Builder 6 | . . . . . 6 Tunneler 1 | . . . . . 1 Recycler 4 | . . 1 3 . . Watcher 2 | . . . . . 2 Swarmer 16 | . . . 3 3 10 Grunt 26 | . 5 2 4 . 15 Brawler 1 | . . . . . 1 Sentry 7 | . . . 4 . 3 Demolisher 1 | . . . . 1 . Hunter 1 | . . . . . 1 Heavy 1 | . . . . . 1 Best Kill Streak 9 | . 2 3 5 4 9 Combat Bots Only 7 | . 2 2 3 3 7 Max Kills in Single Turn 3 | . 1 1 1 2 3 Gunslinging . | . . . . . . Exploded 3 | . . . . . 3 Melee 1 | . . . . 1 . Uniques/NPCs Destroyed . | . . . . . . Combat | -11 -10 -10 -9 -9 -8 -------- Run | Yrd Mat Min Mat Min Mat Hostile Shots Fired 582 | . 22 47 131 29 353 Missed 161 | . 4 10 34 7 106 Damage Taken 5675 | . 221 353 1186 568 3347 Core 855 | . 39 89 133 44 550 Absorbed by Shields 476 | . . . . . 476 Redirected to Shielding 38 | . . . . . 38 Core Remaining (%) 67 | 100 . 48 . 55 . Volleys Fired 147 | . 15 8 45 10 69 Largest 3 | . 2 2 2 2 3 Hottest 140 | . 70 70 105 73 140 Shots Fired 270 | . 30 16 77 20 127 Gun 219 | . 30 16 77 20 76 Cannon 29 | . . . . . 29 Launcher 22 | . . . . . 22 Special . | . . . . . . Kinetic 118 | . 15 8 37 10 48 Thermal 120 | . 15 8 40 10 47 Explosive 18 | . . . . . 18 Electromagnetic 14 | . . . . . 14 Robot Hit Streak 16 | . 16 4 13 6 7 Robot Miss Streak 6 | . 2 3 3 6 3 Penetration Max . | . . . . . . Secondary Targets 3 | . . . 2 . 1 Max Gunslinging Chain 1 | . . . 1 . 1 Shots Hit Robots 177 | . 25 8 54 11 79 Core Hits 124 | . 11 6 24 5 78 Critical Kills 1 | . . 1 . . . Critical Parts Destroyed 1 | . . . . . 1 Critical Strikes 10 | . 4 1 . . 5 Burn 7 | . 4 . . . 3 Destroy 1 | . . 1 . . . Blast 1 | . . . . . 1 Smash 1 | . . . . . 1 Melee Attacks 4 | . . . . 1 3 Impact 4 | . . . . 1 3 Slashing . | . . . . . . Piercing . | . . . . . . Sneak Attacks . | . . . . . . Combat Hostiles . | . . . . . . Follow-up Attacks . | . . . . . . Damage Inflicted 4693 | . 259 81 773 197 3383 Guns 1926 | . 259 81 773 153 660 Cannons 505 | . . . . . 505 Explosions 2072 | . . . . . 2072 Melee 189 | . . . . 44 145 Ramming 1 | . . . . . 1 Kinetic 1194 | . 108 31 361 91 603 Thermal 1246 | . 151 50 412 62 571 Explosive 1695 | . . . . . 1695 Electromagnetic 368 | . . . . . 368 Impact 189 | . . . . 44 145 Slashing . | . . . . . . Piercing . | . . . . . . Highest Corruption 3 | . . . . . 3 Average Corruption 1 | . . . . . 1 Corruption Purged . | . . . . . . Corruption Blocked . | . . . . . . Effects 5 | . . . . . 5 Matter Fused 1 | . . . . . 1 Heat Flow Errors 2 | . . . . . 2 Parts Rejected 1 | . . . . . 1 Alerts 1 | . . . . . 1 Overload Shots . | . . . . . . Overflow Damage 117 | . . . . . 117 Projectiles . | . . . . . . Explosions 71 | . . . . . 71 Melee 46 | . . . . . 46 Knockbacks 3 | . . . . . 3 Impact 1 | . . . . . 1 Kinetic 2 | . . . . . 2 Secondary . | . . . . . . Self-Inflicted Damage 208 | . . . . . 208 Shots 9 | . . . . . 9 Rammed 1 | . . 1 . . . Targets Rammed 2 | . . 1 . . 1 Kicked 1 | . . . . . 1 Crushed . | . . . . . . Highest Temperature 353 | . 100 142 353 27 333 Average Temperature 71 | . 48 67 76 12 81 Received Heat Transfer 1715 | . 123 51 486 . 1055 Effects 1 | . . . 1 . . Short Circuit 1 | . . . 1 . . Siege Activations . | . . . . . . Robots Corrupted . | . . . . . . Combat Hostiles . | . . . . . . Parts Fried 3 | . . . . . 3 Impact Corruptions 3 | . . . . . 3 Robots Melted . | . . . . . . Combat Hostiles . | . . . . . . Parts Melted 6 | . 1 1 2 . 2 Heat Transferred 3372 | . 740 148 1002 185 1297 Parts Sabotaged . | . . . . . . Parts Stolen . | . . . . . . Parts Stripped . | . . . . . . Power Chain Reactions 2 | . . . . . 2 Alert | -11 -10 -10 -9 -9 -8 ------- Run | Yrd Mat Min Mat Min Mat Peak Influence 426 | . 150 103 168 140 426 Initial 65 | . . 58 39 65 44 Average 106 | . 49 89 91 72 152 Maximum Alert Level 2 | . . . . . 2 Low Security (%) 89 | 100 100 100 100 100 75 Level 1 8 | . . . . . 20 Level 2 2 | . . . . . 4 Level 3 . | . . . . . . Level 4 . | . . . . . . Level 5 . | . . . . . . High Security . | . . . . . . Max Security . | . . . . . . Squads Dispatched 9 | . 1 . 1 . 7 Investigation 2 | . . . . . 2 Extermination . | . . . . . . Reinforcement 7 | . 1 . 1 . 5 Assault . | . . . . . . Garrison . | . . . . . . Intercept . | . . . . . . Searches Triggered . | . . . . . . Construction Impeded 2 | . . . . . 2 Haulers Reinforced . | . . . . . . Active Scanning Responses . | . . . . . . Cargo Convoy Interrupts . | . . . . . . Stealth | -11 -10 -10 -9 -9 -8 --------- Run | Yrd Mat Min Mat Min Mat Distress Signals 11 | . 1 . 2 . 8 Communications Jammed . | . . . . . . Distress Signals . | . . . . . . Times Spotted 85 | . 7 5 19 5 49 Peak Tracking Total 9 | . 3 3 5 5 9 Tactical Retreats 5 | . . . 2 . 3 Traps | -11 -10 -10 -9 -9 -8 ------- Run | Yrd Mat Min Mat Min Mat Traps Triggered 3 | . . . 1 . 2 Indirectly 1 | . . . . . 1 Trap Hack Attempts . | . . . . . . Triggered . | . . . . . . Disarmed . | . . . . . . Reprogrammed . | . . . . . . Reused . | . . . . . . Traps Extracted . | . . . . . . Installed . | . . . . . . Triggered . | . . . . . . Machines | -11 -10 -10 -9 -9 -8 ---------- Run | Yrd Mat Min Mat Min Mat Machines Disabled 5 | . . . . . 5 Max in Single Turn 2 | . . . . . 2 Machines Repaired . | . . . . . . Machines Dismantled . | . . . . . . Machines Sabotaged . | . . . . . . Overloaded Fab Kills . | . . . . . . Hacking | -11 -10 -10 -9 -9 -8 --------- Run | Yrd Mat Min Mat Min Mat Machines Accessed 5 | . 1 . 1 1 2 Terminals 2 | . . . . 1 1 Fabricators . | . . . . . . Repair Stations . | . . . . . . Recycling Units 3 | . 1 . 1 . 1 Scanalyzers . | . . . . . . Garrison Access . | . . . . . . Total Hacks 8 | . 2 . 1 2 3 Successful 7 | . 2 . 1 2 2 Failed 1 | . . . . . 1 Catastrophic . | . . . . . . Database Lockouts . | . . . . . . Manual . | . . . . . . Terminals 3 | . . . . 2 1 Fabricators . | . . . . . . Repair Stations . | . . . . . . Recycling Units 5 | . 2 . 1 . 2 Scanalyzers . | . . . . . . Garrison Access . | . . . . . . Terminal Hacks 3 | . . . . 2 1 Record 3 | . . . . 2 1 Fabricator Hacks . | . . . . . . Repair Station Hacks . | . . . . . . Recycling Unit Hacks 4 | . 2 . 1 . 1 Process 1 | . 1 . . . . Retrieve Matter 2 | . 1 . 1 . . Retrieve Components 1 | . . . . . 1 Scanalyzer . | . . . . . . Garrison Access Hacks . | . . . . . . Unauthorized Hacks . | . . . . . . Terminals . | . . . . . . Fabricators . | . . . . . . Repair Stations . | . . . . . . Recycling Units . | . . . . . . Scanalyzers . | . . . . . . Garrison Access . | . . . . . . Data Cores Recovered . | . . . . . . Used . | . . . . . . Hacking Detections 1 | . . . . . 1 Full Trace Events . | . . . . . . Feedback Events . | . . . . . . Feedback Blocked . | . . . . . . Robot Schematics Acquired . | . . . . . . Robots Built . | . . . . . . Authchips . | . . . . . . Time . | . . . . . . Total Robot Build Rating . | . . . . . . Part Schematics Acquired . | . . . . . . Parts Built . | . . . . . . Authchips . | . . . . . . Time . | . . . . . . Total Part Build Rating . | . . . . . . Parts Repaired . | . . . . . . Time . | . . . . . . Parts Recycled . | . . . . . . Recycled Matter 21 | . 21 . . . . Retrieved Matter 21 | . 21 . . . . Retrieved Components 2 | . . . . . 2 Parts Scanalyzed . | . . . . . . Part Schematics Acquired . | . . . . . . Parts Damaged . | . . . . . . Bothacking | -11 -10 -10 -9 -9 -8 ------------ Run | Yrd Mat Min Mat Min Mat Used RIF Installer . | . . . . . . Robots Hacked . | . . . . . . Non-combat . | . . . . . . Combat . | . . . . . . Robot Hacks Applied . | . . . . . . Relay Couplers Released . | . . . . . . Fabnet Peak Effective % . | . . . . . . Robots Rewired . | . . . . . . Allies Hacked . | . . . . . . Hacks Repelled . | . . . . . . Allies | -11 -10 -10 -9 -9 -8 -------- Run | Yrd Mat Min Mat Min Mat Total Allies . | . . . . . . Largest Group . | . . . . . . Highest-Rated Group . | . . . . . . Highest-Rated Ally . | . . . . . . Total Orders . | . . . . . . Ally Attacks . | . . . . . . Total Damage . | . . . . . . Kills . | . . . . . . Allies Corrupted . | . . . . . . Allies Melted . | . . . . . . Intel | -11 -10 -10 -9 -9 -8 ------- Run | Yrd Mat Min Mat Min Mat Robot Analysis Total . | . . . . . . Derelict Logs Recovered . | . . . . . . Drone Launches . | . . . . . . Drone Recoveries . | . . . . . . Exploration | -11 -10 -10 -9 -9 -8 ------------- Run | Yrd Mat Min Mat Min Mat Turns Passed 2899 | 83 286 274 695 373 1188 Spaces Moved 802 | 47 98 76 197 125 259 Core 9 | 8 . . . . 1 Treads 292 | 39 98 76 . . 79 Legs 485 | . . . 197 125 163 Wheels 16 | . . . . . 16 Hover . | . . . . . . Flight . | . . . . . . Fastest Speed 50 | 50 160 320 260 260 230 Average Speed 279 | 141 213 320 260 264 339 Slowest Speed 1650 | 160 320 320 260 330 1650 Overloaded Moves . | . . . . . . Propulsion Burnouts . | . . . . . . Robots Hopped . | . . . . . . Cave-ins Triggered . | . . . . . . Exploration Rate (%) 23 | 4 28 24 24 25 33 Regions Visited 5 Branch Regions 2 Pre-discovered Areas . | . . . . . . Known Exits Taken . | . . . . . . Unknown Exits Taken 5 | 1 1 1 1 1 . Scrap Searched 2 | . . 1 . 1 . Spaces Dug . | . . . . . . Terrain Destroyed 115 | . . . . . 115 Melee . | . . . . . . Projectile 7 | . . . . . 7 AOE 108 | . . . . . 108 Terrain Rammed . | . . . . . . Walls Destroyed . | . . . . . . Machines Disabled . | . . . . . . Actions | -11 -10 -10 -9 -9 -8 --------- Run | Yrd Mat Min Mat Min Mat Total 1197 | 63 149 92 306 146 441 Wait 76 | . 27 2 16 1 30 Move 797 | 46 97 75 196 124 259 Hop . | . . . . . . Pick Up 77 | 10 7 5 27 2 26 Fast Attach 1 | . . . . . 1 Attach 64 | 6 1 1 16 6 34 Detach 2 | . . . 2 . . Swap 15 | 1 1 . 2 2 9 Drop 12 | . 1 . 2 . 9 Fire 147 | . 15 8 45 10 69 Melee 4 | . . . . 1 3 Ram . | . . . . . . Kick 1 | . . . . . 1 Crush 1 | . . 1 . . . Escape Stasis . | . . . . . . Rewire . | . . . . . . Trap . | . . . . . . Miscellaneous . | . . . . . . Route ------- -11/Scrapyard -10/Materials -10/Mines -9/Materials -9/Mines -8/Materials History --------- Turn | Location | Event 2 | -11/Scrapyard | Met Revision 17 13 | -11/Scrapyard | Discovered new exit (range 16) 84 | -11/Scrapyard | Entered Materials 311 | -10/Materials | Build established: Mutant 351 | -10/Materials | Discovered new exit (range 7) 370 | -10/Materials | Entered Mines 622 | -10/Mines | Discovered new exit (range 8) 643 | -10/Mines | Core integrity fell below 50% 644 | -10/Mines | Entered Materials 644 | -9/Materials | Evolved 2 slots: Propulsion x2 1016 | -9/Materials | Lost 4 parts (1p1n2w) 1276 | -9/Materials | Lost 7 parts (1p4n2w) 1320 | -9/Materials | Discovered new exit (range 7) 1339 | -9/Materials | Entered Mines 1343 | -9/Mines | Met a Derelict bent on vengeance 1535 | -9/Mines | Build established: Scavenger-Mutant 1635 | -9/Mines | Assembled infested the area 1639 | -9/Mines | Discovered new exit (range 8) 1712 | -9/Mines | Entered Materials 1712 | -8/Materials | Evolved 2 slots: Utility x1, Weapon x1 1720 | -8/Materials | Lost 6 parts (1p3n2w) 2272 | -8/Materials | Lost 9 parts (1p4n1u3w) 2291 | -8/Materials | Destroyed 7 combat bots 2340 | -8/Materials | Lost 3 parts (1p1n1w) 2618 | -8/Materials | Build established: Tank 2677 | -8/Materials | Core integrity fell below 50% 2752 | -8/Materials | Lost 9 parts (1p4n1u3w) 2880 | -8/Materials | Core integrity fell below 20% 2900 | -8/Materials | Destroyed by G-47 Trooper with Particle Gun Last Messages --------------- 02885_ G-47 Trooper knocked back. 02885_ U-05 Engineer lays Concrete. 02885_ K-01 Serf collects debris. 02886_ U-05 Engineer lays Concrete. 02888_ Lgt. Nuclear Core destroyed. 02888_ U-05 Engineer lays Concrete. 02888_ Shock Bomb Launcher destroyed. 02888_ K-01 Serf collects debris. 02889_ The unstable cave ceiling collapses. 02889_ U-05 Engineer lays Concrete. 02893_ U-05 Engineer destroyed. 02893_ K-01 Serf collects debris. 02895_ G-47 Trooper Aluminum Leg blasted off. 02896_ K-01 Serf collects debris. 02897_ Lgt. Nuclear Core melted. 02897_ G-47 Trooper destroyed. 02898_ Lgt. Nuclear Core destroyed. 02898_ U-05 Engineer lays Concrete. 02899_ The unstable cave ceiling collapses. 02899_ U-05 Engineer lays Concrete. Map ----- +----------------------------------------------------+ | ?????????????????????????????????????????????????? | | ?????????????????????????????????????????????????? | | ?????????????????????????????????????????????????? | | ?????????????????????????????????????????????????? | | ?????????????????????????????????????????????????? | | ?????????????????????????????????????????????????? | | ?????????????????????????????????????????????????? | | ?????????????????????????????????????????????????? | | ?????????????????????????????????????????????????? | | ?????????????????????????????????????????????????? | | ???????????????????????? ????????????????????????? | | ?????????????????????""" ???? "??????????????????? | | ???????????????????" ????""""????????????????? | | ???????????????????" ???? ?????????????????? | | ?????????????????""" / !???? ???????????##????? | | ??????????????##?? ??###+###??????### ###### | | ????????????? ;;## /### #?????? [# | | ?????????????[[ #?????? ! # | | ???????????? [ #?????? !// |? | | ???????????? [ % k #?????? !// ?? | | ???????????? ! #?????? //???? | | ??????????? g =! #?????? ????? | | ??????????? g g =%[| !#???### #+####??? | | ?????????? **!=%=! %###### #### | | ??????????# *[%[!w =#### % | | ???????????????""" [ %!% @ % [ | | ???????????????""" %= # # % %% | | ???????????????""" % # ### % u % % % | | ???????????????""" ##### # ####### ! | | ?????????????? ?????### ## ### #### | | ????????????? ????????# ####??#########??# | | ???????????? ?????????# #????????????????# | | ???????????? ??????????# #????????????????? | | ????????????? ????????????# #????????????????? | | ????????????? ?????????????# #????????????????? | | ????????????????????????????# #????????????????? | | ????????????????????????????# #????????????????? | | ????????????????????????????# #????????????????? | | ????????????????????????????# #????????????????? | | ????????????????????????????? ?????????????????? | | ?????????????????????????????????????????????????? | | ?????????????????????????????????????????????????? | | ?????????????????????????????????????????????????? | | ?????????????????????????????????????????????????? | | ?????????????????????????????????????????????????? | | ?????????????????????????????????????????????????? | | ?????????????????????????????????????????????????? | | ?????????????????????????????????????????????????? | | ?????????????????????????????????????????????????? | | ?????????????????????????????????????????????????? | +----------------------------------------------------+ Best States ------------- Heat Dissipation 31 Energy Generation 14 Energy Capacity 265 Matter Stores 500 Matter Capacity 500 Sight Range 16 Terrain Scan Density 10 Armor Coverage 150 Core Shielding 20 Evasion (%) 50 Targeting Accuracy 5 Recoil Reduction 3 Item Schematics ----------------- None Robot Schematics ------------------ None Fabricated ------------ Nothing Alien Tech Used ----------------- None Achievements -------------- None Challenges ------------ None Game ------ Seed FieldSchematicCycler Manual? 0 Play Time 00:38:12 Cumulative 12.1 hours Start 2024.07.03 @ 12:35:46 End 2024.07.03 @ 13:13:05 Sessions 1 Manual Loads 0 Difficulty Rogue Special Mode None Game No. 29 Rogue 29 Adventurer 0 Explorer 0 Win Type - Total 0 Types 0/0/0/0/0/0/0/0/0 Lore% 14 Gallery% 20 Achievement% 13 Wizard Run 0 Options --------- Layout 1 ASCII 0 Keyboard 0 Movement Mouse Keybinds 0 Fullscreen 1 Font 24/Smallcaps Map View 50x40 Zoom Use 0% Tactical HUD 1 Map Filters NONE Filters NONE Steam 1 RUN: ea54987b-5bf3-4cd3-a223-15be96110489